bitfinex-derivatives/quotes_BNBF0:USTF0_20230830
["timestamp","ask_amount","ask_price","bid_price","bid_amount"]
[1693427223333,0.07341929,223.48,223.2,0.81948943]
[1693427223534,0.07341929,223.48,223.1,0.07308599]
[1693427223726,0.07341929,223.48,223.11,0.81955559]
[1693427224132,0.07341929,223.49,223.11,0.81955559]
[1693427230239,0.07341929,223.49,223.11,0.89264158]
[1693427230439,0.07341929,223.49,223.12,0.81955559]
[1693427230840,0.07341929,223.48,223.12,0.81955559]
[1693427231040,0.07341929,223.48,223.13,0.81955559]
[1693427231240,0.07341929,223.48,223.14,0.81955559]
[1693427231539,0.07341929,223.48,223.11,0.07308599]
[1693427231540,0.07341929,223.48,223.15,0.81955559]
[1693427231741,0.07341929,223.48,223.16,0.81955559]
[1693427231935,0.07341929,223.48,223.17,0.81955559]
[1693427232135,0.07341929,223.48,223.18,0.81955559]
[1693427232338,0.07341929,223.48,223.19,0.81955559]
[1693427232538,0.07341929,223.48,223.2,0.81955559]
[1693427232740,0.07341929,223.48,223.11,0.07308599]
[1693427232940,0.07341929,223.48,223.12,0.81904262]
[1693427233542,0.07341929,223.47,223.12,0.81904262]
[1693427233736,0.07341929,223.48,223.12,0.81904262]
[1693427233940,0.07341929,223.47,223.12,0.81904262]
[1693427234345,0.07341929,223.47,223.12,0.89212861]
[1693427234544,0.07341929,223.47,223.13,0.81904262]
[1693427235245,0.07341929,223.47,223.13,0.89212861]
[1693427235446,0.07341929,223.47,223.14,0.81904262]
[1693427235941,0.07341929,223.46,223.14,0.81904262]
[1693427237342,0.07341929,223.45,223.14,0.89212861]
[1693427237545,0.07341929,223.45,223.15,0.81904262]
[1693427238547,0.07341929,223.44,223.15,0.89212861]
[1693427238747,0.07341929,223.44,223.16,0.81904262]
[1693427239343,0.07341929,223.42,223.17,0.07308599]
[1693427239546,0.07341929,223.42,223.18,0.81904262]
[1693427240547,0.07341929,223.41,223.18,0.89212861]
[1693427240741,0.07341929,223.41,223.19,0.81904262]
[1693427241548,0.07341929,223.4,223.19,0.81904262]
[1693427243051,0.07341929,223.41,223.19,0.89212861]
[1693427243250,0.07341929,223.41,223.2,0.81904262]
[1693427248552,0.07341929,223.41,223.2,0.89212861]
[1693427248753,0.07341929,223.41,223.21,0.81904262]
[1693427249149,0.07341929,223.41,223.19,0.07308599]
[1693427249347,0.07341929,223.41,223.2,0.89207416]
[1693427249546,0.07341929,223.41,223.21,0.81898817]
[1693427251451,0.07341929,223.42,223.21,0.81898817]
[1693427253856,0.07341929,223.42,223.19,0.07308599]
[1693427254055,0.07341929,223.42,223.2,0.81895885]
[1693427261472,0.07341929,223.42,223.2,0.89204484]
[1693427261771,0.07341929,223.42,223.21,0.81895885]
[1693427262274,0.07341929,223.43,223.21,0.81895885]
[1693427266577,0.07341929,223.42,223.21,0.81895885]
[1693427266779,0.07341929,223.42,223.19,0.07308599]
[1693427266978,0.07341929,223.42,223.2,0.8189812]
[1693427269879,0.07341929,223.42,223.2,0.89206719]
[1693427270084,0.07341929,223.42,223.21,0.8189812]
[1693427270583,0.07341929,223.42,223.22,0.8189812]
[1693427270783,0.07341929,223.42,223.2,0.07308599]
[1693427271084,0.07341929,223.42,223.21,0.8189817]
[1693427272483,0.07341929,223.42,223.2,0.8189817]
[1693427272778,0.07341929,223.42,223.21,0.81900433]
[1693427272983,0.07341929,223.42,223.2,0.07308599]
[1693427273283,0.07341929,223.42,223.21,0.81900104]
[1693427276780,0.07341929,223.42,223.2,0.07308599]
[1693427276980,0.07341929,223.42,223.21,0.81900926]
[1693427277881,0.07341929,223.41,223.21,0.81900926]
[1693427289494,0.07341929,223.41,223.21,0.89209525]
[1693427289694,0.07341929,223.41,223.2,0.07308599]
[1693427289890,0.07341929,223.41,223.21,0.81904346]
[1693427290692,0.07341929,223.41,223.21,0.89212945]
[1693427290888,0.07341929,223.41,223.21,0.07308599]
[1693427293000,0.07341929,223.41,223.22,0.81903763]
[1693427296605,0.07341929,223.41,223.2,0.07308599]
[1693427296806,0.07341929,223.41,223.21,0.81907386]
[1693427298210,0.07341929,223.41,223.21,0.89215985]
[1693427298410,0.07341929,223.41,223.21,0.07308599]
[1693427307519,0.07341929,223.41,223.22,0.81904461]
[1693427317726,0.07341929,223.42,223.22,0.81904461]
[1693427317927,0.07341929,223.43,223.22,0.8921306]
[1693427318125,0.07341929,223.42,223.23,0.81904461]
[1693427318342,0.07341929,223.42,223.21,0.07308599]
[1693427318526,0.07341929,223.42,223.22,0.8193974]
[1693427318726,0.07341929,223.42,223.22,0.89248339]
[1693427318926,0.07341929,223.42,223.22,0.07308599]
[1693427319426,0.07341929,223.42,223.21,0.07308599]
[1693427319626,0.07341929,223.42,223.22,0.81938158]
[1693427325437,0.07341929,223.43,223.22,0.81938158]
[1693427336532,0.07341929,223.42,223.22,0.81938158]
[1693427337339,0.07341929,223.43,223.22,0.81938158]
[1693427343545,0.07341929,223.42,223.22,0.81938158]
[1693427343742,0.07341929,223.43,223.22,0.81938158]
[1693427344344,0.07341929,223.42,223.22,0.81938158]
[1693427352349,0.07341929,223.42,223.22,0.89246757]
[1693427352547,0.07341929,223.42,223.22,0.07308599]
[1693427361555,0.07341929,223.41,223.21,0.07308599]
[1693427361756,0.07341929,223.41,223.22,0.82014942]
[1693427363056,0.07341929,223.42,223.22,0.82014942]
[1693427363653,0.07341929,223.41,223.22,0.82014942]
[1693427364155,0.07341929,223.42,223.22,0.82014942]
[1693427371060,0.07341929,223.41,223.22,0.82014942]
[1693427373261,0.07341929,223.42,223.22,0.82014942]
[1693427391376,0.07341929,223.41,223.22,0.82014942]
[1693427391976,0.07341929,223.42,223.22,0.82014942]
[1693427393076,0.07341929,223.41,223.22,0.82014942]
[1693427393877,0.07341929,223.42,223.22,0.82014942]
[1693427396578,0.07341929,223.41,223.22,0.82014942]
[1693427399782,0.07341929,223.42,223.22,0.82014942]
[1693427405784,0.07341929,223.42,223.22,0.89323541]
[1693427405983,0.07341929,223.42,223.23,0.82014942]
[1693427407286,0.07341929,223.51,223.26,0.07308599]
[1693427407487,0.07341929,223.51,223.27,0.82014942]
[1693427408189,0.07341929,223.53,223.27,0.82014942]
[1693427408389,0.07341929,223.53,223.28,0.82014942]
[1693427408585,0.07341929,223.53,223.29,0.82014942]
[1693427408801,0.07341929,223.53,223.24,0.07308599]
[1693427408984,0.07341929,223.53,223.25,0.81988522]
[1693427409489,0.07341929,223.53,223.26,0.81988522]
[1693427409687,0.07341929,223.53,223.27,0.81988522]
[1693427409884,0.07341929,223.53,223.28,0.81988522]
[1693427410190,0.07341929,223.54,223.29,0.81988522]
[1693427410394,0.07341929,223.54,223.23,0.07308599]
[1693427410587,0.07341929,223.54,223.24,0.81986701]
[1693427411293,0.07341929,223.55,223.24,0.81986701]
[1693427411593,0.07341929,223.55,223.25,0.81986701]
[1693427411793,0.07341929,223.55,223.26,0.81986701]
[1693427411991,0.07341929,223.55,223.23,0.81986701]
[1693427412192,0.07341929,223.56,223.23,0.81986701]
[1693427413295,0.07341929,223.57,223.23,0.81986701]
[1693427414196,0.07341929,223.58,223.23,0.81986701]
[1693427414398,0.07341929,223.58,223.24,0.81986701]
[1693427414597,0.07341929,223.58,223.25,0.81986701]
[1693427414795,0.07341929,223.58,223.26,0.81986701]
[1693427414991,0.07341929,223.58,223.22,0.81986701]
[1693427415198,0.07341929,223.58,223.23,0.81986701]
[1693427415397,0.07341929,223.58,223.24,0.81986701]
[1693427415595,0.07341929,223.58,223.21,0.07308599]
[1693427415596,0.07341929,223.58,223.25,0.81986701]
[1693427415793,0.07341929,223.58,223.22,0.81986701]
[1693427415988,0.07341929,223.58,223.23,0.81986701]
[1693427416193,0.07341929,223.58,223.22,0.81986701]
[1693427416391,0.07341929,223.58,223.23,0.81986701]
[1693427416591,0.07341929,223.58,223.24,0.81986701]
[1693427416793,0.07341929,223.58,223.25,0.81986701]
[1693427416991,0.07341929,223.58,223.21,0.81986701]
[1693427417298,0.07341929,223.58,223.22,0.81986701]
[1693427417492,0.07341929,223.58,223.21,0.81986701]
[1693427417692,0.07341929,223.58,223.22,0.81986701]
[1693427417998,0.07341929,223.59,223.23,0.81986701]
[1693427418297,0.07341929,223.59,223.24,0.81986701]
[1693427418496,0.07341929,223.59,223.25,0.81986701]
[1693427418696,0.07341929,223.59,223.21,0.81986701]
[1693427418891,0.07341929,223.59,223.22,0.81986701]
[1693427419094,0.07341929,223.59,223.23,0.81986701]
[1693427419295,0.07341929,223.59,223.24,0.81986701]
[1693427419597,0.07341929,223.59,223.25,0.81986701]
[1693427419797,0.07341929,223.59,223.26,0.81986701]
[1693427419997,0.07341929,223.59,223.21,0.81986701]
[1693427420190,0.07341929,223.59,223.22,0.81986701]
[1693427420392,0.07341929,223.59,223.23,0.81986701]
[1693427420594,0.07341929,223.59,223.21,0.81986701]
[1693427420792,0.07341929,223.59,223.22,0.81986701]
[1693427420992,0.07341929,223.59,223.21,0.81986701]
[1693427421194,0.07341929,223.59,223.22,0.81986701]
[1693427421392,0.07341929,223.59,223.19,0.07308599]
[1693427421393,0.07341929,223.59,223.23,0.81986701]
[1693427421593,0.07341929,223.59,223.24,0.81986701]
[1693427421790,0.07341929,223.59,223.25,0.81986701]
[1693427421997,0.07341929,223.59,223.2,0.81986701]
[1693427422197,0.07341929,223.6,223.21,0.81986701]
[1693427422391,0.07341929,223.6,223.22,0.81986701]
[1693427422595,0.07341929,223.6,223.2,0.81986701]
[1693427422795,0.07341929,223.6,223.21,0.81986701]
[1693427422996,0.07341929,223.6,223.22,0.81986701]
[1693427423193,0.07341929,223.6,223.23,0.81986701]
[1693427423497,0.07341929,223.6,223.24,0.81986701]
[1693427423697,0.07341929,223.6,223.2,0.81986701]
[1693427423899,0.07341929,223.6,223.21,0.81986701]
[1693427425803,0.07341929,223.61,223.21,0.81986701]
[1693427426097,0.07341929,223.6,223.21,0.81986701]
[1693427426902,0.07341929,223.61,223.21,0.81986701]
[1693427427203,0.07341929,223.6,223.21,0.81986701]
[1693427428104,0.07341929,223.6,223.21,0.892953]
[1693427428307,0.07341929,223.6,223.22,0.81986701]
[1693427432203,0.07341929,223.59,223.22,0.892953]
[1693427432402,0.07341929,223.59,223.23,0.81986701]
[1693427434209,0.07341929,223.58,223.23,0.892953]
[1693427434409,0.07341929,223.58,223.24,0.81986701]
[1693427437109,0.07341929,223.57,223.24,0.81986701]
[1693427437308,0.07341929,223.56,223.24,0.81986701]
[1693427437511,0.07341929,223.56,223.25,0.81986701]
[1693427437803,0.07341929,223.56,223.26,0.81986701]
[1693427438003,0.07341929,223.56,223.23,0.81986701]
[1693427438203,0.07341929,223.56,223.22,0.07308599]
[1693427438204,0.07341929,223.56,223.24,0.81986701]
[1693427438405,0.07341929,223.56,223.25,0.81986701]
[1693427438608,0.07341929,223.55,223.24,0.81986701]
[1693427438801,0.07341929,223.55,223.25,0.81986701]
[1693427439009,0.07341929,223.55,223.26,0.81986701]
[1693427439208,0.07341929,223.55,223.24,0.81986701]
[1693427439410,0.07341929,223.54,223.25,0.81986701]
[1693427440311,0.07341929,223.53,223.25,0.892953]
[1693427440609,0.07341929,223.53,223.26,0.81986701]
[1693427441409,0.07341929,223.51,223.27,0.07308599]
[1693427441610,0.07341929,223.51,223.28,0.81986701]
[1693427442310,0.07341929,223.51,223.28,0.892953]
[1693427442510,0.07341929,223.51,223.29,0.81986701]
[1693427444412,0.07341929,223.5,223.29,0.81986701]
[1693427444612,0.07341929,223.5,223.27,0.07308599]
[1693427444812,0.07341929,223.5,223.28,0.81938312]
[1693427450814,0.07341929,223.51,223.28,0.81938312]
[1693427463223,0.07341929,223.5,223.28,0.81938312]
[1693427468527,0.07341929,223.5,223.28,0.89246911]
[1693427468729,0.07341929,223.51,223.29,0.81938312]
[1693427470230,0.07341929,223.5,223.29,0.89246911]
[1693427470531,0.07341929,223.5,223.3,0.81938312]
[1693427475828,0.07341929,223.5,223.29,0.81938312]
[1693427476027,0.07341929,223.5,223.3,0.81935914]
[1693427476332,0.07341929,223.5,223.28,0.07308599]
[1693427476633,0.07341929,223.5,223.29,0.89244124]
[1693427476829,0.07341929,223.5,223.3,0.81935525]
[1693427477027,0.07341929,223.5,223.28,0.07308599]
[1693427477231,0.07341929,223.5,223.29,0.81935904]
[1693427478432,0.07341929,223.5,223.29,0.89244503]
[1693427478634,0.07341929,223.5,223.3,0.81935904]
[1693427478829,0.07341929,223.5,223.29,0.81935904]
[1693427479029,0.07341929,223.5,223.3,0.81936066]
[1693427479234,0.07341929,223.5,223.28,0.07308599]
[1693427479437,0.07341929,223.5,223.29,0.81935775]
[1693427480534,0.07341929,223.5,223.29,0.89244374]
[1693427480734,0.07341929,223.5,223.3,0.81935775]
[1693427481537,0.07341929,223.51,223.3,0.81935775]
[1693427482834,0.07341929,223.5,223.3,0.81935775]
[1693427503254,0.07341929,223.5,223.3,0.89244374]
[1693427503448,0.07341929,223.5,223.31,0.81935775]
[1693427504754,0.07341929,223.5,223.29,0.07308599]
[1693427504954,0.07341929,223.5,223.3,0.81928957]
[1693427505956,0.07341929,223.5,223.3,0.89237556]
[1693427506153,0.14683859,223.53,223.31,0.81928957]
[1693427506154,0.07341929,223.51,223.31,0.81928957]
[1693427507453,0.07341929,223.51,223.3,0.81928957]
[1693427507756,0.07341929,223.51,223.31,0.81927922]
[1693427508653,0.07341929,223.51,223.3,0.07308599]
[1693427508853,0.07341929,223.51,223.31,0.81927117]
[1693427510459,0.07341929,223.51,223.3,0.81927117]
[1693427510657,0.07341929,223.51,223.31,0.81927002]
[1693427510857,0.07341929,223.51,223.3,0.81927002]
[1693427511057,0.07341929,223.51,223.31,0.81927595]
[1693427511252,0.07341929,223.51,223.3,0.81927595]
[1693427511454,0.07341929,223.51,223.31,0.81927108]
[1693427511654,0.07341929,223.51,223.3,0.81927108]
[1693427511855,0.07341929,223.51,223.31,0.81927694]
[1693427512055,0.07341929,223.51,223.29,0.07308599]
[1693427512257,0.07341929,223.51,223.3,0.81927735]
[1693427513759,0.07341929,223.51,223.3,0.89236334]
[1693427513956,0.07341929,223.51,223.31,0.81927735]
[1693427514357,0.07341929,223.51,223.3,0.07308599]
[1693427514654,0.07341929,223.51,223.31,0.81927817]
[1693427514858,0.07341929,223.51,223.3,0.81927817]
[1693427515359,0.07341929,223.51,223.3,0.89236416]
[1693427515554,0.07341929,223.51,223.31,0.81927817]
[1693427517453,0.07341929,223.51,223.3,0.89236416]
[1693427517654,0.07341929,223.51,223.31,0.81943862]
[1693427524865,0.07341929,223.52,223.31,0.81943862]
[1693427525470,0.07341929,223.51,223.31,0.81943862]
[1693427525665,0.14683859,223.54,223.31,0.81943862]
[1693427525666,0.07341929,223.52,223.31,0.81943862]
[1693427532167,0.07341929,223.51,223.31,0.81943862]
[1693427534373,0.07341929,223.52,223.31,0.81943862]
[1693427535271,0.07341929,223.51,223.31,0.81943862]
[1693427535867,0.07341929,223.52,223.31,0.81943862]
[1693427536372,0.07341929,223.51,223.31,0.81943862]
[1693427550978,0.07341929,223.51,223.31,0.89252461]
[1693427551179,0.07341929,223.51,223.31,0.07308599]
[1693427551681,0.07341929,223.51,223.3,0.07308599]
[1693427551980,0.07341929,223.51,223.31,0.81941415]
[1693427552180,0.07341929,223.51,223.31,0.89250014]
[1693427552381,0.07341929,223.51,223.31,0.07308599]
[1693427554779,0.07341929,223.51,222.9,2.43619992]
[1693427555085,0.07341428,223.51,223.31,0.07315038]
[1693427575997,0.07341428,223.51,223.32,0.81941141]
[1693427576696,0.07341428,223.51,223.31,0.07315038]
[1693427579195,0.07341428,223.51,223.32,0.81941025]
[1693427587706,0.07341428,223.52,223.32,0.81941025]
[1693427589715,0.07341428,223.51,223.32,0.81941025]
[1693427593817,0.07341428,223.52,223.32,0.81941025]
[1693427601024,0.07341428,223.53,223.32,0.89256063]
[1693427601225,0.07341428,223.52,223.33,0.81941025]
[1693427601417,0.07341428,223.52,223.32,0.07315038]
[1693427601622,0.07341428,223.53,223.33,0.81965137]
[1693427602223,0.07341428,223.57,223.36,0.07315038]
[1693427602424,0.07341428,223.57,223.37,0.81965137]
[1693427602724,0.07341428,223.58,223.37,0.81965137]
[1693427603720,0.07341428,223.6,223.37,0.81965137]
[1693427603921,0.07341428,223.6,223.38,0.81965137]
[1693427604123,0.07341428,223.6,223.34,0.07315038]
[1693427604324,0.07341428,223.6,223.35,0.81908118]
[1693427604920,0.07341428,223.61,223.35,0.81908118]
[1693427605221,0.07341428,223.61,223.36,0.81908118]
[1693427605422,0.07341428,223.61,223.37,0.81908118]
[1693427605724,0.07341428,223.61,223.38,0.81909487]
[1693427605925,0.07341428,223.62,223.33,0.07315038]
[1693427606225,0.07341428,223.62,223.34,0.81907476]
[1693427606826,0.07341428,223.63,223.34,0.81907476]
[1693427607024,0.07341428,223.63,223.35,0.81907476]
[1693427607321,0.07341428,223.63,223.36,0.81907476]
[1693427607625,0.07341428,223.63,223.37,0.81907476]
[1693427607818,0.07341428,223.63,223.38,0.81907476]
[1693427608023,0.07341428,223.63,223.31,0.07315038]
[1693427608216,0.07341428,223.63,223.32,0.81908255]
[1693427609525,0.07341428,223.64,223.32,0.81908255]
[1693427610720,0.07341428,223.64,223.31,0.81908255]
[1693427610927,0.07341428,223.64,223.32,0.81908255]
[1693427611119,0.07341428,223.64,223.33,0.81908255]
[1693427611324,0.07341428,223.64,223.34,0.81908255]
[1693427611524,0.07341428,223.64,223.31,0.81908255]
[1693427611725,0.07341428,223.64,223.32,0.81908255]
[1693427612026,0.07341428,223.64,223.33,0.81908255]
[1693427612219,0.07341428,223.64,223.34,0.81908255]
[1693427612422,0.07341428,223.64,223.35,0.81908255]
[1693427612623,0.07341428,223.64,223.36,0.81908255]
[1693427612822,0.07341428,223.65,223.37,0.81908255]
[1693427613119,0.07341428,223.65,223.38,0.81908255]
[1693427613426,0.07341428,223.65,223.3,0.07315038]
[1693427613722,0.07341428,223.65,223.31,0.81909025]
[1693427616025,0.07341428,223.65,223.32,0.81909025]
[1693427616225,0.07341428,223.65,223.33,0.81909025]
[1693427616420,0.07341428,223.65,223.34,0.81909025]
[1693427616622,0.07341428,223.65,223.35,0.81909025]
[1693427616824,0.07341428,223.65,223.36,0.81909025]
[1693427617027,0.07341428,223.66,223.37,0.81909025]
[1693427617326,0.07341428,223.66,223.38,0.81909025]
[1693427617527,0.07341428,223.66,223.3,0.07315038]
[1693427617727,0.07341428,223.66,223.31,0.81893252]
[1693427620328,0.07341428,223.68,223.32,0.07315038]
[1693427620627,0.07341428,223.68,223.33,0.81893252]
[1693427620828,0.07341428,223.69,223.33,0.81893252]
[1693427621022,0.07341428,223.68,223.33,0.81893252]
[1693427622023,0.07341428,223.68,223.34,0.81893252]
[1693427622226,0.07341428,223.68,223.35,0.81893252]
[1693427622427,0.07341428,223.68,223.36,0.81893252]
[1693427622726,0.07341428,223.69,223.37,0.81893252]
[1693427623029,0.07341428,223.69,223.38,0.81893252]
[1693427623224,0.07341428,223.68,223.39,0.81893252]
[1693427623530,0.07341428,223.68,223.4,0.81893252]
[1693427623724,0.07341428,223.68,223.31,0.07315038]
[1693427623929,0.07341428,223.68,223.32,0.81870804]
[1693427628734,0.07341428,223.67,223.32,0.81870804]
[1693427629932,0.07341428,223.67,223.32,0.89185842]
[1693427630136,0.07341428,223.67,223.33,0.81870804]
[1693427631831,0.07341428,223.66,223.33,0.81870804]
[1693427632837,0.07341428,223.66,223.33,0.89185842]
[1693427633034,0.07341428,223.66,223.34,0.81870804]
[1693427633534,0.07341428,223.67,223.34,0.89185842]
[1693427633733,0.07341428,223.67,223.35,0.89185842]
[1693427634033,0.07341428,223.67,223.36,0.81870804]
[1693427634538,0.14682856,223.69,223.36,0.81870804]
[1693427634539,0.07341428,223.66,223.36,0.81870804]
[1693427635434,0.07341428,223.65,223.36,0.81870804]
[1693427635840,0.07341428,223.64,223.36,0.89185842]
[1693427636036,0.07341428,223.64,223.37,0.81870804]
[1693427636837,0.07341428,223.64,223.38,0.81870804]
[1693427637035,0.07341428,223.63,223.36,0.89185842]
[1693427637237,0.07341428,223.63,223.37,0.81870804]
[1693427637943,0.07341428,223.62,223.37,0.81870804]
[1693427645351,0.07341428,223.61,223.37,0.81870804]
[1693427651255,0.14682856,223.63,223.37,0.81870804]
[1693427651256,0.07341428,223.6,223.37,0.81870804]
[1693427668868,0.07341428,223.6,223.37,0.89185842]
[1693427669069,0.07341428,223.6,223.38,0.81870804]
[1693427670470,0.07341428,223.59,223.38,0.81870804]
[1693427673573,0.07341428,223.59,223.38,0.89185842]
[1693427673764,0.07341428,223.59,223.39,0.81870804]
[1693427678676,0.07341428,223.6,223.39,0.81870804]
[1693427679070,0.07341428,223.6,223.39,0.89185842]
[1693427679270,0.07341428,223.6,223.4,0.81870804]
[1693427679778,0.07341428,223.6,223.38,0.07315038]
[1693427680077,0.07341428,223.6,223.39,0.81836304]
[1693427684384,0.07341428,223.61,223.39,0.81836304]
[1693427691490,0.07341428,223.62,223.39,0.81836304]
[1693427696492,0.07341428,223.61,223.39,0.81836304]
[1693427700694,0.07341428,223.62,223.39,0.81836304]
[1693427701388,0.07341428,223.61,223.39,0.81836304]
[1693427706493,0.07341428,223.61,223.39,0.89151342]
[1693427706798,0.07341428,223.61,223.4,0.81836304]
[1693427711801,2.44714272,223.74,223.4,0.81836304]
[1693427712000,0.14670605,223.63,223.41,0.81836304]
[1693427712298,0.07335302,223.61,223.39,0.07301853]
[1693427712498,0.07335302,223.61,223.4,0.81814385]
[1693427716505,0.07335302,223.6,223.4,0.81814385]
[1693427717106,0.07335302,223.61,223.4,0.81814385]
[1693427717498,0.07335302,223.6,223.4,0.81814385]
[1693427718100,0.07335302,223.61,223.4,0.81814385]
[1693427718506,0.07335302,223.61,223.4,0.89116238]
[1693427718706,0.07335302,223.61,223.41,0.81814385]
[1693427721712,0.07335302,223.6,223.41,0.81814385]
[1693427722312,0.07335302,223.6,223.39,0.07301853]
[1693427722512,0.07335302,223.6,223.4,0.81809262]
[1693427723413,0.07335302,223.6,223.4,0.89111115]
[1693427723712,0.07335302,223.6,223.41,0.81809262]
[1693427746627,0.07335302,223.6,223.4,0.07301853]
[1693427746832,0.07335302,223.6,223.39,0.07301853]
[1693427747032,0.07335302,223.6,223.4,0.81824169]
[1693427771744,0.07335302,223.61,223.4,0.81824169]
[1693427775442,0.07335302,223.6,223.4,0.81824169]
[1693427784255,0.07335302,223.61,223.4,0.89126022]
[1693427784456,0.07335302,223.61,223.41,0.81824169]
[1693427784650,0.07335302,223.62,223.41,0.81824169]
[1693427792366,0.07335302,223.63,223.41,0.81824169]
[1693427794562,0.07335302,223.63,223.42,0.81824169]
[1693427794761,0.07335302,223.63,223.39,0.07301853]
[1693427794965,0.07335302,223.63,223.4,0.81816045]
[1693427795266,0.07335302,223.63,223.4,0.89117898]
[1693427795461,0.07335302,223.63,223.41,0.81816045]
[1693427796262,0.07335302,223.63,223.4,0.81816045]
[1693427796561,0.07335302,223.63,223.41,0.81816045]
[1693427796761,0.07335302,223.63,223.42,0.81816045]
[1693427796969,0.07335302,223.63,223.39,0.07301853]
[1693427797162,0.07335302,223.63,223.4,0.81814877]
[1693427799267,0.07335302,223.63,223.4,0.8911673]
[1693427799462,0.07335302,223.63,223.41,0.81814877]
[1693427816575,0.07335302,223.62,223.41,0.81814877]
[1693427817576,0.07335302,223.62,223.41,0.8911673]
[1693427817776,0.07335302,223.63,223.42,0.81814877]
[1693427818470,0.07335302,223.62,223.42,0.81814877]
[1693427836782,0.07335302,223.61,223.42,0.81814877]
[1693427836982,0.07335302,223.62,223.42,0.81814877]
[1693427840090,0.07335302,223.62,223.42,0.8911673]
[1693427840289,0.07335302,223.62,223.42,0.07301853]
[1693427840790,0.07335302,223.62,223.43,0.81807991]
[1693427845193,0.07335302,223.63,223.43,0.81807991]
[1693427845694,0.07335302,223.62,223.43,0.81807991]
[1693427845994,0.07335302,223.62,223.42,0.07301853]
[1693427846194,0.07335302,223.62,223.43,0.81807257]
[1693427846394,0.07335302,223.62,223.42,0.81807257]
[1693427846594,0.07335302,223.62,223.41,0.07301853]
[1693427846595,0.07335302,223.62,223.43,0.81807267]
[1693427846897,0.07335302,223.62,223.41,0.07301853]
[1693427847193,0.07335302,223.62,223.42,0.81807279]
[1693427848288,0.07335302,223.63,223.42,0.81807279]
[1693427848793,0.07335302,223.63,223.42,0.89109132]
[1693427849095,0.07335302,223.63,223.43,0.81807279]
[1693427849295,0.07335302,223.63,223.42,0.81807279]
[1693427849489,0.07335302,223.63,223.41,0.07301853]
[1693427849490,0.07335302,223.63,223.43,0.81806677]
[1693427849689,0.07335302,223.63,223.42,0.81806677]
[1693427849890,0.07335302,223.63,223.43,0.818067]
[1693427850089,0.07335302,223.63,223.41,0.07301853]
[1693427850395,0.07335302,223.63,223.42,0.81806714]
[1693427850896,0.07335302,223.62,223.42,0.81806714]
[1693427852295,0.14670605,223.65,223.42,0.81806714]
[1693427852296,0.07335302,223.63,223.42,0.81806714]
[1693427853497,0.07335302,223.62,223.42,0.81806714]
[1693427854497,0.07335302,223.63,223.42,0.81806714]
[1693427860205,0.07335302,223.62,223.42,0.81806714]
[1693427860404,0.07335302,223.63,223.42,0.81806714]
[1693427860999,0.07335302,223.62,223.42,0.81806714]
[1693427872711,0.07335302,223.61,223.42,0.81806714]
[1693427872909,0.07335302,223.61,223.4,0.07301853]
[1693427873110,0.07335302,223.61,223.41,0.81825625]
[1693427873809,0.07335302,223.61,223.4,0.81825625]
[1693427874005,0.07335302,223.61,223.41,0.81826261]
[1693427874212,0.07335302,223.61,223.39,0.07301853]
[1693427874409,0.07335302,223.61,223.4,0.81826303]
[1693427875107,0.07335302,223.62,223.4,0.81826303]
[1693427883819,0.07335302,223.62,223.39,0.81826303]
[1693427884016,0.07335302,223.62,223.4,0.81826303]
[1693427884224,0.07335302,223.62,223.39,0.81826303]
[1693427884418,0.07335302,223.62,223.4,0.81826303]
[1693427884615,0.07335302,223.62,223.38,0.07301853]
[1693427884816,0.07335302,223.62,223.39,0.81833692]
[1693427887330,0.07335302,223.61,223.39,0.81833692]
[1693427887625,0.07335302,223.57,223.3,0.07301853]
[1693427887825,0.07335302,223.57,223.31,0.81905718]
[1693427888226,0.07335302,223.57,223.3,0.81905718]
[1693427888527,0.07335302,223.58,223.31,0.81905718]
[1693427888827,0.07335302,223.58,223.32,0.81905718]
[1693427889026,0.07335302,223.58,223.33,0.81905718]
[1693427889327,0.07335302,223.58,223.21,0.14603706]
[1693427889328,0.07335302,223.58,223.27,0.07301853]
[1693427889529,0.07335302,223.58,223.28,0.81914225]
[1693427889726,0.07335302,223.59,223.28,0.81914225]
[1693427889926,0.07335302,223.59,223.27,0.81914225]
[1693427890128,0.07335302,223.59,223.28,0.81914225]
[1693427890329,0.07335302,223.59,223.27,0.81914225]
[1693427890627,0.07335302,223.6,223.28,0.81914225]
[1693427890932,0.07335302,223.6,223.29,0.81914225]
[1693427891125,0.07335302,223.6,223.3,0.81914225]
[1693427891322,0.07335302,223.6,223.31,0.81914225]
[1693427891628,0.07335302,223.61,223.32,0.81914225]
[1693427891822,0.07335302,223.61,223.26,0.81914225]
[1693427892022,0.07335302,223.61,223.27,0.81914225]
[1693427892328,0.07335302,223.61,223.28,0.81914225]
[1693427892530,0.07335302,223.61,223.29,0.81914225]
[1693427892728,0.07335302,223.61,223.3,0.81914225]
[1693427892929,0.07335302,223.61,223.24,0.07301853]
[1693427892930,0.07335302,223.61,223.31,0.81914225]
[1693427893124,0.07335302,223.61,223.25,0.81914225]
[1693427893327,0.07335302,223.61,223.26,0.81914225]
[1693427893524,0.07335302,223.62,223.25,0.81914225]
[1693427893827,0.07335302,223.62,223.26,0.81914225]
[1693427894130,0.07335302,223.61,223.27,0.81914225]
[1693427894330,0.07335302,223.61,223.24,0.81914225]
[1693427894532,0.07335302,223.62,223.25,0.81914225]